fUST/lending_fUST_20240423
["ID","MTS","AMOUNT","RATE_DAILY","PERIOD"]
[323268320,1713859839145,-5459.67159958,0.0002,2]
[323268322,1713859839155,-241.51912105,0.0002,2]
[323268324,1713859839164,-154.82968734,0.0002,2]
[323268326,1713859839173,-183.31048361,0.0002,2]
[323268328,1713859839183,-615.75933218,0.0002,2]
[323268330,1713859839192,-689.46452953,0.0002,2]
[323268332,1713859839201,-277.98874346,0.0002,2]
[323268334,1713859839210,-400.0,0.0002,2]
[323268336,1713859839219,-238.88786072,0.0002,2]
[323268338,1713859839228,-354.80715765,0.0002,2]
[323268340,1713859839237,-678.04287141,0.0002,2]
[323268342,1713859839247,-80000.0,0.0002,2]
[323268344,1713859839256,-200.0,0.0002,2]
[323268346,1713859839266,-524.5590718,0.0002,4]
[323268348,1713859839275,-154.82968734,0.0002,2]
[323268350,1713859839284,-154.82968734,0.0002,2]
[323268352,1713859839293,-587.0,0.00020822,2]
[323268354,1713859839302,-3344.28028285,0.00021,2]
[323268356,1713859839312,-7925.57647667,0.00021,2]
[323268358,1713859839321,-526.14121076,0.00021131,2]
[323268360,1713859839330,-154.98278998,0.00021131,2]
[323268362,1713859839340,-193.52697819,0.00021131,2]
[323268364,1713859839349,-883.42675349,0.00021131,2]
[323268366,1713859839359,-154.84515485,0.00021131,2]
[323268369,1713859839368,-587.0,0.0002114,2]
[323268372,1713859839379,-5000.0,0.000213,2]
[323268375,1713859839389,-1000.0,0.000218,2]
[323268379,1713859839399,-1000.0,0.000218,3]
[323268382,1713859839408,-7889.26819427,0.00021817,2]
[323268384,1713859839420,-1259.41545977,0.00021817,2]
[323268472,1713859841139,-385.10922443,0.0001747,2]
[323268473,1713859841196,-817.09240773,0.0001747,2]
[323268474,1713859841205,-154.82968734,0.0001747,2]
[323268475,1713859841214,-5482.02072648,0.00021817,2]
[323268476,1713859841226,-643.24,0.00021817,2]
[323268477,1713859841237,-13917.19474918,0.00021817,2]
[323268478,1713859841246,-44444.0,0.00021817,3]
[323268479,1713859841255,-4101.0,0.000219,2]
[323268480,1713859841264,-597.37089177,0.00021915,2]
[323268481,1713859841274,-500.0,0.00021917,2]
[323268482,1713859841364,-500.0,0.00021917,2]
[323268483,1713859841373,-505.31589247,0.00021917,2]
[323268484,1713859841382,-500.0,0.00021917,2]
[323268485,1713859841392,-500.0,0.00021917,2]
[323268486,1713859841401,-500.0,0.00021917,2]
[323268487,1713859841411,-500.0,0.00021917,2]
[323268488,1713859841420,-500.0,0.00021917,2]
[323268489,1713859841430,-500.0,0.00021917,2]
[323268490,1713859841440,-500.0,0.00021917,2]
[323268491,1713859841449,-500.0,0.00021917,2]
[323268492,1713859841458,-500.0,0.00021917,2]
[323268493,1713859841467,-500.0,0.00021917,2]
[323268494,1713859841478,-567.18569427,0.00021917,2]
[323268495,1713859841487,-521.66796182,0.00021917,2]
[323268496,1713859841496,-500.0,0.00021917,2]
[323268497,1713859841505,-500.0,0.00021917,2]
[323268498,1713859841514,-500.0,0.00021917,2]
[323268499,1713859841525,-500.0,0.00021917,2]
[323268500,1713859841535,-629.29,0.00021917,2]
[323268501,1713859841544,-500.0,0.00021917,2]
[323268502,1713859841553,-241.80291807,0.00021917,2]
[323268503,1713859841563,-500.0,0.00021917,2]
[323268504,1713859841572,-500.0,0.00021917,2]
[323268505,1713859841581,-500.0,0.00021917,2]
[323268506,1713859841590,-500.0,0.00021917,2]
[323268507,1713859841599,-504.22179746,0.00021917,2]
[323268508,1713859841608,-500.0,0.00021917,2]
[323268509,1713859841618,-500.0,0.00021917,2]
[323268510,1713859841627,-500.0,0.00021917,2]
[323268511,1713859841637,-500.0,0.00021917,2]
[323268512,1713859841647,-500.0,0.00021917,2]
[323268513,1713859841656,-502.51233475,0.00021917,2]
[323268515,1713859841665,-500.0,0.00021917,2]
[323268516,1713859841675,-506.08055043,0.00021917,2]
[323268518,1713859841685,-500.0,0.00021917,2]
[323268520,1713859841694,-527.86168637,0.00021917,2]
[323268522,1713859841704,-500.0,0.00021917,2]
[323268524,1713859841713,-500.0,0.00021917,2]
[323268526,1713859841722,-500.0,0.00021917,2]
[323268528,1713859841732,-500.0,0.00021917,2]
[323268530,1713859841741,-545.35926924,0.00021917,2]
[323268533,1713859841750,-500.0,0.00021917,2]
[323268534,1713859841761,-500.0,0.00021917,2]
[323268537,1713859841770,-500.0,0.00021917,2]
[323268538,1713859841779,-500.0,0.00021917,2]
[323268539,1713859841788,-500.0,0.00021917,2]
[323268540,1713859841797,-500.0,0.00021917,2]
[323268542,1713859841806,-500.0,0.00021917,2]
[323268544,1713859841815,-500.0,0.00021917,2]
[323268546,1713859841824,-500.0,0.00021917,2]
[323268547,1713859841833,-259.25988984,0.00021917,2]
[323268548,1713859841842,-500.0,0.00021917,2]
[323268549,1713859841851,-500.0,0.00021917,2]
[323268550,1713859841860,-500.0,0.00021917,2]
[323268551,1713859841869,-500.0,0.00021917,2]
[323268552,1713859841878,-503.24888842,0.00021917,2]
[323268553,1713859841888,-572.39675591,0.00021917,2]
[323268554,1713859841897,-500.0,0.00021917,2]
[323268556,1713859841906,-569.78584518,0.00021917,2]
[323268558,1713859841915,-500.0,0.00021917,2]
[323268560,1713859841924,-504.51431478,0.00021917,2]
[323268562,1713859841933,-505.59215273,0.00021917,2]
[323268564,1713859841942,-500.76773782,0.00021917,2]
[323268565,1713859841951,-500.0,0.00021917,2]
[323268566,1713859841961,-519.72911189,0.00021917,2]
[323268567,1713859841970,-500.0,0.00021917,2]
[323268568,1713859841979,-569.9,0.00021917,2]
[323268569,1713859841989,-500.0,0.00021917,2]
[323268570,1713859841998,-500.0,0.00021917,2]
[323268571,1713859842007,-621.45917348,0.00021917,2]
[323268573,1713859842016,-500.0,0.00021917,2]
[323268574,1713859842026,-500.0,0.00021917,2]
[323268575,1713859842040,-500.0,0.00021917,2]
[323268576,1713859842049,-500.0,0.00021917,2]
[323268577,1713859842059,-500.0,0.00021917,2]
[323268578,1713859842068,-500.0,0.00021917,2]
[323268579,1713859842079,-500.0,0.00021917,2]
[323268580,1713859842088,-500.0,0.00021917,2]
[323268581,1713859842098,-526.87449858,0.00021917,2]
[323268582,1713859842107,-501.32321952,0.00021917,2]
[323268583,1713859842116,-835.48,0.00021917,2]
[323268584,1713859842126,-500.0,0.00021917,2]
[323268585,1713859842135,-500.0,0.00021917,2]
[323268586,1713859842147,-500.0,0.00021917,2]
[323268587,1713859842156,-500.0,0.00021917,2]
[323268588,1713859842165,-411.0910347,0.00021917,2]
[323268589,1713859842182,-500.0,0.00021917,2]
[323268590,1713859842197,-500.0,0.00021917,2]
[323268591,1713859842212,-500.0,0.00021917,2]
[323268592,1713859842224,-500.0,0.00021917,2]
[323268593,1713859842238,-689.47,0.00021917,2]
[323268594,1713859842251,-301.35554364,0.00021917,2]
[323268595,1713859842265,-500.0,0.00021917,2]
[323268596,1713859842279,-500.0,0.00021917,2]
[323268597,1713859842290,-500.0,0.00021917,2]
[323268598,1713859842303,-500.0,0.00021917,2]
[323268599,1713859842316,-658.05,0.00021917,2]
[323268600,1713859842327,-500.0,0.00021917,2]
[323268601,1713859842341,-737.06,0.00021917,2]
[323268602,1713859842355,-500.0,0.00021917,2]
[323268603,1713859842365,-500.0,0.00021917,2]
[323268605,1713859842378,-502.72461328,0.00021917,2]
[323268606,1713859842393,-500.0,0.00021917,2]
[323268607,1713859842406,-500.0,0.00021917,2]
[323268608,1713859842419,-993.09,0.00021917,2]
[323268609,1713859842431,-500.0,0.00021917,2]
[323268610,1713859842444,-500.0,0.00021917,2]
[323268611,1713859842457,-500.0,0.00021917,2]
[323268612,1713859842472,-500.0,0.00021917,2]
[323268613,1713859842486,-500.0,0.00021917,2]
[323268614,1713859842500,-500.0,0.00021917,2]
[323268615,1713859842512,-504.06236159,0.00021917,2]
[323268616,1713859842523,-500.0,0.00021917,2]
[323268618,1713859842534,-705.51,0.00021917,2]
[323268619,1713859842548,-500.0,0.00021917,2]
[323268621,1713859842560,-500.0,0.00021917,2]
[323268622,1713859842574,-500.0,0.00021917,2]
[323268623,1713859842585,-500.0,0.00021917,2]
[323268624,1713859842596,-501.88929148,0.00021917,2]
[323268625,1713859842608,-500.0,0.00021917,2]
[323268626,1713859842619,-500.0,0.00021917,2]
[323268627,1713859842632,-500.0,0.00021917,2]
[323268628,1713859842645,-500.0,0.00021917,2]
[323268629,1713859842658,-500.0,0.00021917,2]
[323268630,1713859842670,-500.0,0.00021917,2]
[323268631,1713859842682,-500.0,0.00021917,2]
[323268632,1713859842694,-500.0,0.00021917,2]
[323268633,1713859842706,-500.0,0.00021917,2]
[323268634,1713859842717,-524.07719286,0.00021917,2]
[323268635,1713859842729,-500.0,0.00021917,2]
[323268636,1713859842741,-1036.83,0.00021917,2]
[323268637,1713859842753,-500.0,0.00021917,2]
[323268638,1713859842765,-203.09213189,0.00021917,2]
[323268639,1713859842777,-500.0,0.00021917,2]
[323268640,1713859842790,-500.0,0.00021917,2]
[323268641,1713859842802,-500.0,0.00021917,2]
[323268642,1713859842814,-500.0,0.00021917,2]
[323268643,1713859842826,-500.0,0.00021917,2]
[323268644,1713859842838,-500.0,0.00021917,2]
[323268645,1713859842850,-500.0,0.00021917,2]
[323268646,1713859842861,-520.63143256,0.00021917,2]
[323268647,1713859842873,-500.0,0.00021917,2]
[323268648,1713859842885,-500.0,0.00021917,2]
[323268649,1713859842896,-636.79,0.00021917,2]
[323268650,1713859842908,-500.0,0.00021917,2]
[323268651,1713859842920,-642.72,0.00021917,2]
[323268652,1713859842931,-500.0,0.00021917,2]
[323268653,1713859842943,-500.0,0.00021917,2]
[323268654,1713859842956,-652.97,0.00021917,2]
[323268655,1713859842967,-500.0,0.00021917,2]
[323268656,1713859842980,-500.0,0.00021917,2]
[323268657,1713859842992,-662.25,0.00021917,2]
[323268658,1713859843002,-500.0,0.00021917,2]
[323268659,1713859843014,-500.0,0.00021917,2]
[323268660,1713859843026,-500.0,0.00021917,2]
[323268661,1713859843041,-500.0,0.00021917,2]
[323268662,1713859843053,-682.12,0.00021917,2]
[323268663,1713859843064,-710.43,0.00021917,2]
[323268664,1713859843076,-500.0,0.00021917,2]
[323268665,1713859843087,-2108.12,0.00021917,2]
[323268666,1713859843099,-500.0,0.00021917,2]
[323268667,1713859843110,-943.23,0.00021917,2]
[323268668,1713859843121,-500.0,0.00021917,2]
[323268669,1713859843131,-500.0,0.00021917,2]
[323268670,1713859843141,-500.0,0.00021917,2]
[323268671,1713859843150,-500.0,0.00021917,2]
[323268672,1713859843159,-500.0,0.00021917,2]
[323268673,1713859843168,-613.42850891,0.00021917,2]
[323268674,1713859843178,-500.0,0.00021917,2]
[323268683,1713859843327,-500.0,0.00021917,2]
[323268685,1713859843337,-500.0,0.00021917,2]
[323268687,1713859843346,-500.0,0.00021917,2]
[323268689,1713859843356,-1669.69,0.00021917,2]
[323268691,1713859843365,-500.0,0.00021917,2]
[323268693,1713859843374,-500.27651721,0.00021917,2]
[323268695,1713859843384,-151.0,0.00021917,2]
[323268698,1713859843394,-685.36,0.00021917,2]
[323268699,1713859843403,-500.0,0.00021917,2]
[323268701,1713859843412,-1338.47,0.00021917,2]
[323268703,1713859843421,-500.0,0.00021917,2]
[323268706,1713859843430,-500.0,0.00021917,2]
[323268707,1713859843439,-500.0,0.00021917,2]
[323268709,1713859843449,-500.0,0.00021917,2]
[323268711,1713859843458,-500.0,0.00021917,2]
[323268714,1713859843468,-500.0,0.00021917,2]
[323268716,1713859843478,-500.0,0.00021917,2]
[323268717,1713859843487,-500.0,0.00021917,2]
[323268719,1713859843496,-500.0,0.00021917,2]
[323268721,1713859843506,-500.0,0.00021917,2]
[323268723,1713859843515,-500.0,0.00021917,2]
[323268725,1713859843524,-500.0,0.00021917,2]
[323268727,1713859843533,-500.0,0.00021917,2]
[323268729,1713859843543,-500.0,0.00021917,2]
[323268731,1713859843552,-500.0,0.00021917,2]
[323268733,1713859843561,-740.06,0.00021917,2]
[323268735,1713859843570,-1518.39,0.00021917,2]
[323268737,1713859843579,-500.0,0.00021917,2]
[323268739,1713859843588,-610.96252376,0.00021917,2]
[323268741,1713859843598,-500.0,0.00021917,2]
[323268743,1713859843607,-500.0,0.00021917,2]
[323268745,1713859843616,-679.27,0.00021917,2]
[323268747,1713859843626,-22705.08,0.00021917,2]
[323268749,1713859843636,-500.0,0.00021917,2]
[323268751,1713859843645,-701.96,0.00021917,2]
[323268753,1713859843655,-309.6903097,0.00021917,2]
[323268755,1713859843669,-457.68207742,0.00021917,2]
[323268756,1713859843678,-501.6572623,0.00021917,2]
[323268757,1713859843687,-500.0,0.00021917,2]
[323268759,1713859843696,-500.0,0.00021917,2]
[323268761,1713859843705,-544.24,0.00021917,2]
[323268762,1713859843714,-500.0,0.00021917,2]
[323268764,1713859843723,-500.0,0.00021917,2]
[323268766,1713859843732,-1810.88,0.00021917,2]
[323268768,1713859843741,-1028.01,0.00021917,2]
[323268771,1713859843751,-500.0,0.00021917,2]
[323268772,1713859843760,-500.0,0.00021917,2]
[323268774,1713859843770,-500.0,0.00021917,2]
[323268776,1713859843780,-501.35074205,0.00021917,2]
[323268778,1713859843789,-1744.67,0.00021917,2]
[323268780,1713859843798,-500.0,0.00021917,2]
[323268782,1713859843807,-502.02745164,0.00021917,2]
[323268784,1713859843816,-517.13,0.00021917,2]
[323268786,1713859843825,-501.6604523,0.00021917,2]
[323268788,1713859843835,-500.0,0.00021917,2]
[323268791,1713859843844,-500.0,0.00021917,2]
[323268793,1713859843853,-500.0,0.00021917,2]
[323268794,1713859843863,-2641.57,0.00021917,2]
[323268796,1713859843872,-500.0,0.00021917,2]
[323268799,1713859843881,-500.26849165,0.00021917,2]
[323268800,1713859843891,-1534.45,0.00021917,2]
[323268803,1713859843901,-500.0,0.00021917,2]
[323268804,1713859843910,-500.21824336,0.00021917,2]
[323268806,1713859843919,-500.0,0.00021917,2]
[323268809,1713859843929,-500.0,0.00021917,2]
[323268811,1713859843938,-500.0,0.00021917,2]
[323268813,1713859843947,-500.0,0.00021917,2]
[323268815,1713859843957,-500.0,0.00021917,2]
[323268817,1713859843966,-508.68,0.00021917,2]
[323268819,1713859843975,-500.98013825,0.00021917,2]
[323268821,1713859843984,-500.0,0.00021917,2]
[323268823,1713859843993,-500.0,0.00021917,2]
[323268825,1713859844004,-500.0,0.00021917,2]
[323268827,1713859844013,-500.0,0.00021917,2]
[323268829,1713859844022,-500.0,0.00021917,2]
[323268830,1713859844035,-500.0,0.00021917,2]
[323268833,1713859844044,-500.0,0.00021917,2]
[323268835,1713859844054,-500.0,0.00021917,2]
[323268837,1713859844063,-500.0,0.00021917,2]
[323268839,1713859844073,-2261.85,0.00021917,2]
[323268841,1713859844082,-500.0,0.00021917,2]
[323268843,1713859844091,-500.0,0.00021917,2]
[323268845,1713859844100,-500.0,0.00021917,2]
[323268846,1713859844111,-500.0,0.00021917,2]
[323268849,1713859844120,-504.30294056,0.00021917,2]
[323268851,1713859844129,-504.33697733,0.00021917,2]
[323268853,1713859844139,-348.20647695,0.00021917,2]
[323268855,1713859844150,-11353.67,0.00021917,2]
[323268857,1713859844159,-2176.02,0.00021917,2]
[323268859,1713859844168,-500.34140587,0.00021917,2]
[323268861,1713859844177,-500.0,0.00021917,2]
[323268863,1713859844186,-500.0,0.00021917,2]
[323268865,1713859844195,-502.57975284,0.00021917,2]
[323268867,1713859844204,-687.51,0.00021917,2]
[323268869,1713859844213,-502.27558034,0.00021917,2]
[323268871,1713859844222,-500.0,0.00021917,2]
[323268873,1713859844231,-1155.102915,0.00021917,2]
[323268875,1713859844240,-542.67199493,0.00021917,2]
[323268877,1713859844250,-1643.65,0.00021917,2]
[323268878,1713859844261,-500.07001818,0.00021917,2]
[323268881,1713859844270,-1155.102915,0.00021917,2]
[323268883,1713859844279,-1195.12,0.00021917,2]
[323268885,1713859844288,-500.0,0.00021917,2]
[323268887,1713859844299,-500.45171939,0.00021917,2]
[323268889,1713859844308,-500.0,0.00021917,2]
[323268890,1713859844317,-500.0,0.00021917,2]
[323268893,1713859844327,-500.0,0.00021917,2]
[323268894,1713859844336,-500.0,0.00021917,2]
[323268896,1713859844345,-500.0,0.00021917,2]
[323268898,1713859844355,-500.0,0.00021917,2]
[323268900,1713859844365,-500.0,0.00021917,2]
[323268903,1713859844374,-500.0,0.00021917,2]
[323268905,1713859844385,-1729.02,0.00021917,2]
[323268907,1713859844396,-613.00147131,0.00021917,2]
[323268909,1713859844405,-645.11,0.00021917,2]
[323268911,1713859844414,-500.0,0.00021917,2]
[323268913,1713859844423,-605.55037946,0.00021917,2]
[323268915,1713859844432,-846.49,0.00021917,2]
[323268917,1713859844441,-500.0,0.00021917,2]
[323268919,1713859844450,-500.0,0.00021917,2]
[323268921,1713859844459,-683.76,0.00021917,2]
[323268923,1713859844468,-737.85,0.00021917,2]
[323268925,1713859844477,-500.0,0.00021917,2]
[323268927,1713859844486,-558.84,0.00021917,2]
[323268928,1713859844495,-1819.32,0.00021917,2]
[323268931,1713859844505,-500.0,0.00021917,2]
[323268933,1713859844515,-500.0,0.00021917,2]
[323268934,1713859844524,-1201.421594,0.00021917,2]
[323268936,1713859844533,-500.0,0.00021917,2]
[323268938,1713859844543,-500.0,0.00021917,2]
[323268941,1713859844552,-1201.421594,0.00021917,2]
[323268942,1713859844563,-500.0,0.00021917,2]
[323268945,1713859844572,-500.0,0.00021917,2]
[323268947,1713859844582,-500.0,0.00021917,2]
[323268949,1713859844591,-858.75,0.00021917,2]
[323268951,1713859844602,-500.0,0.00021917,2]
[323268952,1713859844611,-588.13253448,0.00021917,2]
[323268954,1713859844621,-3463.2,0.00021917,2]
[323268957,1713859844631,-500.0,0.00021917,2]
[323268959,1713859844645,-528.80425813,0.00021917,2]
[323268961,1713859844655,-500.0,0.00021917,2]
[323268963,1713859844665,-500.0,0.00021917,2]
[323268965,1713859844677,-527.48539434,0.00021917,2]
[323268967,1713859844686,-500.0,0.00021917,2]
[323268969,1713859844695,-500.0,0.00021917,2]
[323268971,1713859844704,-1244.08,0.00021917,2]
[323268973,1713859844713,-500.0,0.00021917,2]
[323268975,1713859844722,-500.0,0.00021917,2]
[323268977,1713859844732,-500.0,0.00021917,2]
[323268979,1713859844741,-1352.49,0.00021917,2]
[323268981,1713859844750,-279.80392464,0.00021917,2]
[323268983,1713859844760,-500.0,0.00021917,2]
[323268985,1713859844770,-500.0,0.00021917,2]
[323268987,1713859844780,-1844.74,0.00021917,2]
[323268989,1713859844789,-835.48,0.00021918,2]
[323268991,1713859844798,-3453.14,0.00021918,2]
[323268993,1713859844808,-2877.62,0.00021918,2]
[323268995,1713859844818,-2398.02,0.00021918,2]
[323268997,1713859844827,-1998.35,0.00021918,2]
[323268999,1713859844837,-1665.29,0.00021918,2]
[323269001,1713859844847,-1387.74,0.00021918,2]
[323269003,1713859844856,-1156.45,0.00021918,2]
[323269005,1713859844865,-963.71,0.00021918,2]
[323269007,1713859844874,-803.09,0.00021918,2]
[323269009,1713859844884,-1068.44024633,0.00021935,2]
[323269011,1713859844894,-500.0,0.00021999,2]
[323269013,1713859844903,-500.0,0.00021999,2]
[323269016,1713859844912,-500.0,0.00021999,2]
[323269018,1713859844921,-500.0,0.00021999,2]
[323269019,1713859844930,-500.0,0.00021999,2]
[323269021,1713859844939,-500.0,0.00021999,2]
[323269023,1713859844948,-500.0,0.00021999,2]
[323269025,1713859844958,-500.0,0.00021999,2]
[323269028,1713859844967,-500.0,0.00021999,2]
[323269029,1713859844976,-500.0,0.00021999,2]
[323269031,1713859844987,-500.0,0.00021999,2]
[323269034,1713859844996,-159.06202442,0.00022,2]
[323269036,1713859845006,-500.0,0.0002209,2]
[323269038,1713859845015,-500.0,0.00022188,2]
[323269040,1713859845025,-154.94713823,0.00022189,2]
[323269041,1713859845039,-500.0,0.00022189,2]
[323269043,1713859845048,-500.0,0.00022189,2]
[323269046,1713859845058,-500.0,0.00022189,2]
[323269048,1713859845066,-500.0,0.00022189,2]
[323269050,1713859845077,-373.61619593,0.00022189,2]
[323269052,1713859845086,-500.0,0.00022191,2]
[323269054,1713859845096,-500.0,0.00022191,2]
[323269056,1713859845106,-500.0,0.00022191,2]
[323269058,1713859845117,-500.0,0.00022191,2]
[323269060,1713859845126,-500.0,0.00022191,2]
[323269061,1713859845137,-500.0,0.00022191,2]
[323269063,1713859845146,-500.0,0.00022191,2]
[323269065,1713859845155,-500.0,0.00022191,2]
[323269067,1713859845164,-500.0,0.00022191,2]
[323269069,1713859845174,-500.0,0.00022191,2]
[323269072,1713859845184,-500.0,0.00022191,2]
[323269074,1713859845194,-500.0,0.00022191,2]
[323269075,1713859845203,-500.0,0.00022191,2]
[323269077,1713859845212,-502.84768752,0.00022191,2]
[323269079,1713859845222,-629.29,0.00022191,2]
[323269082,1713859845231,-303.42878118,0.00022191,2]
[323269083,1713859845240,-500.0,0.00022191,2]
[323269085,1713859845249,-500.0,0.00022191,2]
[323269087,1713859845258,-500.0,0.00022191,2]
[323269089,1713859845267,-500.0,0.00022191,2]
[323269091,1713859845276,-500.0,0.00022191,2]
[323269093,1713859845285,-500.0,0.00022191,2]
[323269095,1713859845294,-500.0,0.00022191,2]
[323269097,1713859845303,-500.0,0.00022191,2]
[323269100,1713859845312,-500.0,0.00022191,2]
[323269102,1713859845321,-500.0,0.00022191,2]
[323269105,1713859845331,-500.0,0.00022191,2]
[323269108,1713859845340,-500.0,0.00022191,2]
[323269111,1713859845349,-500.0,0.00022191,2]
[323269114,1713859845359,-500.0,0.00022191,2]
[323269117,1713859845368,-605.52569592,0.00022191,2]
[323269120,1713859845378,-539.51301054,0.00022191,2]
[323269121,1713859845387,-592.28,0.00022191,2]
[323269123,1713859845396,-500.0,0.00022191,2]
[323269141,1713859845495,-500.0,0.00022191,2]
[323269144,1713859845504,-500.0,0.00022191,2]
[323269147,1713859845515,-500.0,0.00022191,2]
[323269149,1713859845524,-569.9,0.00022191,2]
[323269151,1713859845533,-500.0,0.00022191,2]
[323269153,1713859845542,-500.0,0.00022191,2]
[323269155,1713859845551,-500.0,0.00022191,2]
[323269157,1713859845561,-500.0,0.00022191,2]
[323269159,1713859845570,-500.0,0.00022191,2]
[323269161,1713859845579,-500.0,0.00022191,2]
[323269163,1713859845589,-835.48,0.00022191,2]
[323269165,1713859845597,-500.0,0.00022191,2]
[323269167,1713859845607,-500.0,0.00022191,2]
[323269169,1713859845617,-500.0,0.00022191,2]
[323269171,1713859845626,-500.0,0.00022191,2]
[323269173,1713859845637,-500.0,0.00022191,2]
[323269175,1713859845646,-500.0,0.00022191,2]
[323269177,1713859845656,-500.0,0.00022191,2]
[323269179,1713859845665,-500.0,0.00022191,2]
[323269181,1713859845675,-689.47,0.00022191,2]
[323269183,1713859845684,-500.0,0.00022191,2]
[323269185,1713859845694,-312.08150455,0.00022191,2]
[323269187,1713859845703,-500.0,0.00022191,2]
[323269189,1713859845713,-658.05,0.00022191,2]
[323269191,1713859845722,-500.0,0.00022191,2]
[323269193,1713859845732,-737.06,0.00022191,2]
[323269195,1713859845742,-500.0,0.00022191,2]
[323269197,1713859845751,-500.0,0.00022191,2]
[323269199,1713859845760,-500.0,0.00022191,2]
[323269201,1713859845770,-993.09,0.00022191,2]
[323269203,1713859845780,-500.0,0.00022191,2]
[323269205,1713859845789,-356.09888771,0.00022191,2]
[323269207,1713859845799,-583.76001669,0.00022191,2]
[323269209,1713859845809,-500.0,0.00022191,2]
[323269211,1713859845818,-705.51,0.00022191,2]
[323269213,1713859845828,-500.0,0.00022191,2]
[323269214,1713859845836,-404.19745103,0.00022191,2]
[323269215,1713859845845,-500.0,0.00022191,2]
[323269216,1713859845854,-500.0,0.00022191,2]
[323269217,1713859845863,-500.0,0.00022191,2]
[323269218,1713859845871,-500.0,0.00022191,2]
[323269219,1713859845880,-500.0,0.00022191,2]
[323269220,1713859845890,-500.0,0.00022191,2]
[323269221,1713859845899,-500.0,0.00022191,2]
[323269222,1713859845907,-500.0,0.00022191,2]
[323269223,1713859845916,-1036.83,0.00022191,2]
[323269224,1713859845924,-500.0,0.00022191,2]
[323269225,1713859845933,-500.0,0.00022191,2]
[323269226,1713859845942,-500.0,0.00022191,2]
[323269227,1713859845951,-500.0,0.00022191,2]
[323269228,1713859845959,-500.0,0.00022191,2]
[323269229,1713859845968,-500.0,0.00022191,2]
[323269230,1713859845977,-636.79,0.00022191,2]
[323269231,1713859845985,-501.14872946,0.00022191,2]
[323269232,1713859845994,-642.72,0.00022191,2]
[323269233,1713859846003,-652.97,0.00022191,2]
[323269234,1713859846011,-500.0,0.00022191,2]
[323269235,1713859846020,-662.25,0.00022191,2]
[323269236,1713859846031,-527.21734633,0.00022191,2]
[323269237,1713859846040,-374.40571692,0.00022191,2]
[323269238,1713859846049,-500.0,0.00022191,2]
[323269240,1713859846058,-500.0,0.00022191,2]
[323269242,1713859846067,-682.12,0.00022191,2]
[323269244,1713859846077,-710.43,0.00022191,2]
[323269246,1713859846087,-500.0,0.00022191,2]
[323269248,1713859846096,-1615.37749288,0.00022191,2]
[323269263,1713859846232,-492.74250712,0.00022191,2]
[323269265,1713859846242,-500.0,0.00022191,2]
[323269267,1713859846251,-943.23,0.00022191,2]
[323269269,1713859846260,-302.16779516,0.00022191,2]
[323269271,1713859846269,-500.0,0.00022191,2]
[323269273,1713859846278,-380.91413593,0.00022191,2]